fUSD/lending_fUSD_20250327
["ID","MTS","AMOUNT","RATE_DAILY","PERIOD"]
[356729690,1743052232306,-1037.15,0.00014357,2]
[356729691,1743052232315,-350.0,0.00014357,3]
[356729692,1743052232325,-1037.15,0.00014388,2]
[356729693,1743052232334,-1037.15,0.00014418,2]
[356729694,1743052232343,-870.0726627,0.00014448,2]
[356729695,1743052232376,-167.0773373,0.00014448,2]
[356729696,1743052232386,-434.47126194,0.00014452,2]
[356729697,1743052232542,-455.36,0.00014452,2]
[356729698,1743052232555,-110.16873806,0.00014452,2]
[356729699,1743052232564,-1037.15,0.00014478,2]
[356729700,1743052232573,-396.94440691,0.00014508,2]
[356729701,1743052232585,-640.20559309,0.00014508,2]
[356729702,1743052232595,-300.0,0.00014526,2]
[356729703,1743052232604,-42.9462317,0.00014536,2]
[356729704,1743052232614,-529.66100517,0.00014538,2]
[356729705,1743052232625,-507.48899483,0.00014538,2]
[356729706,1743052232635,-168.5374173,0.0001455,2]
[356729707,1743052232644,-1037.15,0.00014568,2]
[356729708,1743052232654,-1037.15,0.00014598,2]
[356729709,1743052232664,-74.7165563,0.0001461,2]
[356729710,1743052232674,-1037.15,0.00014628,2]
[356729711,1743052232688,-1037.15,0.00014659,2]
[356729712,1743052232697,-434.9709691,0.00014669,2]
[356729713,1743052232707,-1037.15,0.00014689,2]
[356729714,1743052232716,-250.0,0.00014702,2]
[356729715,1743052232727,-1037.15,0.00014719,2]
[356729716,1743052232736,-1037.15,0.00014749,2]
[356729717,1743052232745,-150.0,0.00014749,2]
[356729718,1743052232756,-1037.15,0.00014779,2]
[356729720,1743052232765,-150.0,0.00014783,7]
[356729721,1743052232775,-20408.14,0.00014783,2]
[356729722,1743052232785,-1037.15,0.00014809,2]
[356729723,1743052232795,-1045.76,0.00014823,2]
[356729724,1743052232805,-1037.15,0.00014839,2]
[356729725,1743052232815,-15276.14877424,0.0001485,2]
[356729726,1743052232824,-1037.15,0.00014869,2]
[356729727,1743052232834,-500.0,0.00014873,2]
[356729728,1743052232843,-825.474,0.00014899,2]
[356729729,1743052232854,-892.5889,0.000149,2]
[356729730,1743052232863,-48687.7147,0.000149,2]
[356729731,1743052232872,-1597.676,0.000149,2]
[356729732,1743052232882,-2319.3095,0.000149,2]
[356729733,1743052232891,-4338.63577998,0.000149,2]
[356729734,1743052232900,-568.1274717,0.00014973,2]
[356729735,1743052232911,-230203.89088275,0.00015,2]
[356729736,1743052232923,-89857.89690648,0.00015,2]
[356729737,1743052232934,-1917.29626969,0.00015,2]
[356729738,1743052238200,-592.14361496,0.000149,2]
[356729739,1743052238257,-941.57868834,0.000149,2]
[356729740,1743052238269,-598.23886693,0.000149,2]
[356729741,1743052238279,-30194.53434705,0.00015,2]
[356729742,1743052238312,-1179.5372909,0.00015,2]
[356729743,1743052238324,-289.25549772,0.00015,2]
[356729744,1743052238335,-5805.96,0.00015,2]
[356729745,1743052238370,-2112.96262421,0.00015,2]
[356729746,1743052238382,-5857.11735741,0.00015,2]
[356729747,1743052238393,-7710.74342811,0.00015,2]
[356729751,1743052240470,-38352.95170704,0.00015,2]
[356729752,1743052240527,-2482.0,0.00015,2]
[356729779,1743052243315,-3001.67,0.00015,2]
[356729780,1743052243371,-3797.68104727,0.00015,2]
[356729797,1743052245539,-331.40167,0.00015,2]
[356729798,1743052245551,-5071.00837159,0.00015,2]
[356729799,1743052245562,-1795.66259684,0.00015,2]
[356729800,1743052246240,-2647.73328687,0.00015,2]
[356729801,1743052246253,-138521.26774122,0.00015,2]
[356729802,1743052246263,-1968.18600428,0.00015,2]
[356729803,1743052246272,-7661.10559748,0.00015,2]
[356729804,1743052246282,-18217.74721475,0.00015,2]
[356729805,1743052246291,-149216.0304295,0.00015,2]
[356729806,1743052246408,-1729.24609705,0.00015,2]
[356729807,1743052246419,-16279.58931408,0.00015,2]
[356729808,1743052246463,-710.81898075,0.00015,2]
[356729809,1743052246475,-924.87105184,0.00015,2]
[356729810,1743052246520,-599.38775637,0.00015,2]
[356729811,1743052246575,-563.65557944,0.00015,2]
[356729812,1743052246587,-9793.03853788,0.00015,2]
[356729813,1743052246597,-6476.7578557,0.00015001,2]
[356729814,1743052246606,-8516.0422069,0.00015011,2]
[356729815,1743052246616,-174.38,0.00015096,2]
[356729816,1743052246625,-166.58,0.00015099,2]
[356729817,1743052246635,-1517.64,0.000153,2]
[356729818,1743052246645,-11904.18858332,0.000154,2]
[356729823,1743052389990,-1000.0,0.000149,2]
[356729824,1743052390034,-4138.6548559,0.000154,2]
[356729825,1743052390075,-487.84045266,0.000154,2]
[356729826,1743052390112,-350.0,0.00015454,3]
[356729827,1743052390149,-150.0,0.00015454,2]
[356729828,1743052390185,-3144.6151231,0.00015508,2]
[356729829,1743052390222,-5329.6299487,0.00015508,2]
[356729830,1743052390259,-164.76,0.00015518,2]
[356729831,1743052390294,-393.69616742,0.00015661,2]
[356729832,1743052390329,-166.58,0.00015698,2]
[356729833,1743052457927,-350.0,0.00015727,3]
[356729834,1743052457961,-150.0,0.00015727,2]
[356729835,1743052458002,-700.15,0.00015735,2]
[356729836,1743052458040,-500.0,0.000158,2]
[356729837,1743052458076,-300.0,0.00015999,2]
[356729838,1743052458110,-4537.71667114,0.00016,2]
[356729839,1743052458145,-19508.87292289,0.00016,2]
[356729840,1743052458179,-393.69616743,0.00016051,2]
[356729841,1743052458214,-164.76,0.0001611,2]
[356729842,1743052458248,-499.99,0.00016116,2]
[356729843,1743052458282,-331.17,0.00016116,2]
[356729844,1743052458317,-999.99,0.00016116,2]
[356729845,1743052458351,-3817.99,0.00016116,2]
[356729846,1743052458388,-150.99,0.00016116,2]
[356729847,1743052458423,-1000.0,0.00016258,2]
[356729848,1743052458462,-166.58,0.00016296,2]
[356729849,1743052458501,-155.29,0.00016416,2]
[356729850,1743052458537,-6013.19,0.00016438,2]
[356729851,1743052458571,-174.38,0.00016466,2]
[356729852,1743052458606,-1173.12,0.00016537,2]
[356729853,1743052458639,-164.76,0.00016701,2]
[356729854,1743052458673,-166.58,0.00016894,2]
[356729855,1743052458707,-350.0,0.0001694,3]
[356729856,1743052458741,-150.0,0.0001694,2]
[356729857,1743052458775,-169.07,0.00017045,2]
[356729858,1743052458815,-20835.22,0.00017147,2]
[356729859,1743052458850,-350.0,0.000173,3]
[356729860,1743052458886,-150.0,0.000173,2]
[356729861,1743052458921,-700.15,0.00017484,2]
[356729862,1743052458956,-420.0,0.00017492,2]
[356729863,1743052504546,269.64713531,0.00017492,2]
[356729864,1743052507651,200.0,0.00017492,2]
[356729868,1743052988486,543.01087,7.945e-05,2]
[356729901,1743053431409,-196.4,0.00013699,2]
[356729903,1743053431419,-344.62982009,0.00014825,2]
[356729905,1743053431430,-506.56201684,0.00014825,2]
[356729906,1743053431467,-341.60300007,0.00014825,2]
[356729907,1743053431476,-531.95291652,0.0001489,2]
[356729908,1743053431486,-170.39390944,0.000149,2]
[356729909,1743053431495,-346.20915188,0.000149,2]
[356729910,1743053431504,-3874.4788252,0.000149,2]
[356729911,1743053431514,-500.0,0.00014973,2]
[356729912,1743053431523,-150.0,0.00014999,2]
[356729913,1743053431533,-42694.80863047,0.00015,2]
[356729914,1743053431580,-306.0,0.00015,2]
[356729915,1743053431695,-13629.98225047,0.00015,2]
[356729916,1743053431707,-1158.5934276,0.00015,2]
[356729918,1743053437332,-2788.77381803,0.00015,2]
[356729919,1743053437390,-677.27877795,0.00015,2]
[356729920,1743053437401,-612.60000005,0.00015,2]
[356729921,1743053437452,-3993.56075201,0.00015,2]
[356729922,1743053437463,-3701.24985,0.00015,2]
[356729923,1743053437475,-10168.99999985,0.00015,2]
[356729924,1743053437486,-511.36323944,0.00015,2]
[356729925,1743053437496,-1011.85,0.00015,2]
[356729926,1743053437507,-1650.43404456,0.00015,2]
[356729927,1743053437518,-1755.84217161,0.00015,2]
[356729928,1743053437572,-1104.90149786,0.00015,2]
[356729929,1743053437586,-1419.50043972,0.00015,2]
[356729930,1743053437634,-12430.14766108,0.00015,2]
[356729972,1743053438045,-24970.68907053,0.00015,2]
[356730272,1743053441403,-3535.37754293,0.00015,2]
[356730274,1743053441414,-756.51647867,0.00015,2]
[356730278,1743053441434,-292.80120001,0.00015,2]
[356730280,1743053441446,-840.77658634,0.00015,2]
[356730358,1743053442578,-2257.00855522,0.00015,2]
[356730360,1743053442590,-4897.1909532,0.00015,2]
[356730362,1743053442601,-9289.25953684,0.00015,2]
[356730392,1743053445464,-31402.39687458,0.00015,2]
[356730393,1743053445476,-5727.067215,0.00015,2]
[356730394,1743053445744,-1602.70349695,0.00015,2]
[356730405,1743054112478,500.0,0.0002501,120]
[356730406,1743054136671,498.75,0.0002501,120]
[356730433,1743054560881,1168.64,0.00011959,2]
[356730438,1743054631707,-150.0,0.00013869,2]
[356730439,1743054631717,-198.44,0.00013899,2]
[356730440,1743054631726,-150.0,0.00013903,2]
[356730441,1743054631736,-190.32,0.00013909,2]
[356730442,1743054631746,-1000.0,0.00013931,2]
[356730443,1743054631755,-175.92,0.00014064,2]
[356730444,1743054631765,-1039.03306986,0.00014223,2]
[356730445,1743054631777,-129.60693014,0.00014223,2]
[356730446,1743054631786,-184.08,0.00014434,2]
[356730447,1743054631796,-159.56,0.00014534,2]
[356730448,1743054631806,-3334.56978487,0.00014582,2]
[356730449,1743054631818,-1192.74021513,0.00014582,2]
[356730450,1743054631828,-159.56,0.00014582,2]
[356730451,1743054631837,-393.69616743,0.00014598,2]
[356730452,1743054631847,-159.56,0.0001463,2]
[356730453,1743054631856,-159.56,0.00014679,2]
[356730454,1743054631866,-159.56,0.00014727,2]
[356730455,1743054631875,-28.99344598,0.00014773,2]
[356730456,1743054631887,-280.78569558,0.00014773,2]
[356730457,1743054631896,-159.56,0.00014776,2]
[356730458,1743054631906,-688.33515979,0.000148,2]
[356730459,1743054631920,-909.34084021,0.000148,2]
[356730460,1743054631929,-223.7212,0.000148,2]
[356730461,1743054631939,-159.56,0.00014824,2]
[356730462,1743054631948,-904.87331755,0.0001485,2]
[356730463,1743054631959,-6370.76523132,0.0001485,2]
[356730475,1743054637530,-2710.39713599,0.0001485,2]
[356730476,1743054637543,-1363.83747749,0.0001485,2]
[356730477,1743054637555,-1540.92105376,0.0001485,2]
[356730478,1743054637588,-2385.35455813,0.0001485,2]
[356730479,1743054637598,-500.0,0.00014873,2]
[356730480,1743054637608,-159.56,0.00014873,2]
[356730481,1743054637618,-150.0,0.00014899,2]
[356730482,1743054637627,-300.0,0.00014899,2]
[356730483,1743054637638,-834.7954,0.000149,2]
[356730484,1743054637647,-802.6426,0.000149,2]
[356730485,1743054637657,-180.37002882,0.000149,2]
[356730486,1743054637667,-64268.21215902,0.000149,2]
[356730487,1743054637679,-1205.33914098,0.000149,2]
[356730488,1743054637689,-2319.3095,0.000149,2]
[356730489,1743054637698,-892.5889,0.000149,2]
[356730490,1743054637708,-3985.63265146,0.000149,2]
[356730491,1743054637719,-1848.58418204,0.000149,2]
[356730525,1743054639849,-798.52623198,0.000149,2]
[356730526,1743054639861,-457.31693452,0.000149,2]
[356730527,1743054639871,-150.99,0.000149,2]
[356730528,1743054639880,-291.69306548,0.000149,2]
[356730529,1743054639891,-1030.82396,0.000149,2]
[356730530,1743054639903,-4000.0,0.000149,2]
[356730531,1743054639935,-40459.4315957,0.000149,2]
[356730532,1743054639944,-164.65203455,0.000149,2]
[356730533,1743054639953,-230.80610126,0.000149,2]
[356730534,1743054639963,-159.56,0.00014921,2]
[356730535,1743054639973,-159.56,0.0001497,2]
[356730536,1743054639982,-3100.51292605,0.00014997,2]
[356730537,1743054639992,-11220.26852942,0.00015,2]
[356730538,1743054640004,-1731.98,0.00015,2]
[356730539,1743054640015,-1771.96607913,0.00015,2]
[356730540,1743054640031,-1408.45308547,0.00015,2]
[356730541,1743054640042,-7817.01558886,0.00015,2]
[356730542,1743054640074,-500.0,0.00015,2]
[356730607,1743054642791,-6735.58384872,0.00015,2]
[356730608,1743054642803,-1986.82732598,0.00015,2]
[356730609,1743054642844,-500.0,0.00015,2]
[356730610,1743054642904,-1154.41985695,0.00015,2]
[356730616,1743054645705,-2045.00000002,0.000148,2]
[356730617,1743055209465,2000.0,0.00012,2]
[356730619,1743055440699,-150.0,0.00014435,7]
[356730620,1743055617148,-259.4993,0.00013933,2]
[356730621,1743055626241,1000.0,0.00020949,14]
[356730622,1743055626550,1000.0,0.00020949,14]
[356730623,1743055626830,1000.0,0.00020949,14]
[356730624,1743055627121,1000.0,0.00020949,14]
[356730625,1743055627408,1013.81812,0.00020949,14]
[356730635,1743055662738,39.093721,0.00011879,2]
[356730637,1743055724635,-622.18722772,0.00011879,2]
[356730646,1743055831776,-448.20905128,0.00011879,2]
[356730647,1743055831785,-150.0,0.00012473,2]
[356730648,1743055831794,-150.0,0.00013067,2]
[356730649,1743055831803,-150.0,0.00013067,2]
[356730650,1743055831814,-169.07,0.00013579,2]
[356730651,1743055831823,-150.0,0.00013669,2]
[356730652,1743055831832,-300.0,0.00013698,2]
[356730653,1743055831841,-4880.32526989,0.00013699,2]
[356730654,1743055831852,-328.01300429,0.00013699,2]
[356730655,1743055831863,-544.0998858,0.00013699,2]
[356730656,1743055831950,-3682.87300828,0.00013699,2]
[356730657,1743055831961,-3925.50276661,0.00013699,2]
[356730658,1743055832109,-2046.24606513,0.00013699,2]
[356730659,1743055832119,-500.0,0.00013808,2]
[356730660,1743055832129,-40.5007,0.00013933,2]
[356730661,1743055832140,-31.72828854,0.0001404,2]
[356730662,1743055832154,-968.27171146,0.0001404,2]
[356730663,1743055832163,-500.0,0.00014055,2]
[356730664,1743055832172,-250.0,0.00014101,2]
[356730665,1743055832182,-810.08047199,0.00014143,2]
[356730667,1743055832195,-299.40952801,0.00014143,2]
[356730669,1743055832204,-497.28534503,0.00014332,2]
[356730671,1743055832217,-1394.14805497,0.00014332,2]
[356730673,1743055832226,-33978.7231416,0.00014422,2]
[356730676,1743055832238,-397.09512393,0.00014422,2]
[356730678,1743055832250,-1872.68017004,0.00014422,2]
[356730680,1743055832262,-1506.13532102,0.00014422,2]
[356730682,1743055832271,-150.0,0.00014431,2]
[356730684,1743055832280,-188.72,0.00014432,2]
[356730686,1743055832289,-93418.69,0.00014432,2]
[356730688,1743055832299,-500.0,0.00014466,2]
[356730690,1743055832309,-539.10929973,0.00014473,2]
[356730692,1743055832318,-500.0,0.00014473,2]
[356730694,1743055832327,-164.69003248,0.00014473,2]
[356730696,1743055832336,-502.49092012,0.00014473,2]
[356730698,1743055832345,-500.0,0.00014473,2]
[356730700,1743055832354,-184.3,0.00014527,2]
[356730702,1743055832363,-431.20634798,0.000146,2]
[356730704,1743055832373,-431.20634793,0.00014633,2]
[356730706,1743055832382,-356.66098112,0.00014661,2]
[356730708,1743055832391,-431.20634793,0.00014667,2]
[356730711,1743055832401,-35401.6349,0.000147,2]
[356730714,1743055832410,-1918.76505318,0.000147,2]
[356730717,1743055832419,-431.20634793,0.000147,2]
[356730720,1743055832429,-1918.76505315,0.00014722,2]
[356730723,1743055832438,-431.20634793,0.00014733,2]
[356730725,1743055832447,-1918.76505315,0.00014744,2]
[356730727,1743055832456,-2084.08,0.00014767,2]
[356730730,1743055832465,-644.17,0.00014767,2]
[356730733,1743055832474,-3294.04,0.00014767,2]
[356730736,1743055832484,-1918.76505315,0.00014767,2]
[356730739,1743055832493,-431.20634793,0.00014767,2]
[356730742,1743055832502,-1918.76505315,0.00014789,2]
[356730745,1743055832511,-968.247,0.00014789,2]
[356730748,1743055832520,-311658.14799998,0.000148,2]
[356730751,1743055832529,-2249.7556,0.000148,2]
[356730754,1743055832538,-431.20634793,0.000148,2]
[356730757,1743055832548,-1918.76505315,0.00014811,2]
[356730760,1743055832557,-1918.76505315,0.00014833,2]
[356730763,1743055832566,-431.20634793,0.00014833,2]
[356730766,1743055832575,-1918.76505315,0.00014856,2]
[356730769,1743055832584,-431.20634793,0.00014867,2]
[356730772,1743055832594,-1918.76505315,0.00014878,2]
[356730775,1743055832603,-62680.6288,0.000149,2]
[356730778,1743055832612,-35980.195,0.000149,2]
[356730781,1743055832621,-500.0,0.000149,2]
[356730783,1743055832630,-178.34399956,0.000149,2]
[356730784,1743055832639,-151.746262,0.000149,2]
[356730787,1743055832648,-1494.989068,0.000149,2]
[356730791,1743055832658,-151.0,0.000149,2]
[356730794,1743055832668,-151.0,0.000149,2]
[356730797,1743055832677,-155.915241,0.000149,2]
[356730800,1743055832686,-151.0,0.000149,2]
[356730803,1743055832695,-173.198645,0.000149,2]
[356730806,1743055832704,-151.0,0.000149,2]
[356730809,1743055832714,-206.043517,0.000149,2]
[356730811,1743055832723,-151.0,0.000149,2]
[356730814,1743055832733,-151.0,0.000149,2]
[356730816,1743055832742,-151.0,0.000149,2]
[356730817,1743055832751,-151.0,0.000149,2]
[356730819,1743055832760,-155.010371,0.000149,2]
[356730821,1743055832769,-151.0,0.000149,2]
[356730823,1743055832779,-151.0,0.000149,2]
[356730825,1743055832789,-151.0,0.000149,2]
[356730827,1743055832799,-151.0,0.000149,2]
[356730830,1743055832809,-151.0,0.000149,2]
[356730832,1743055832819,-151.0,0.000149,2]
[356730834,1743055832828,-151.0,0.000149,2]
[356730836,1743055832838,-151.0,0.000149,2]
[356730838,1743055832847,-151.0,0.000149,2]
[356730840,1743055832856,-151.0,0.000149,2]
[356730842,1743055832866,-151.0,0.000149,2]
[356730843,1743055832875,-155.247672,0.000149,2]
[356730844,1743055832885,-1918.76505315,0.000149,2]
[356730845,1743055832895,-431.20634793,0.000149,2]
[356730846,1743055832904,-2582.98588348,0.000149,2]
[356730847,1743055832914,-153.87073418,0.000149,2]
[356730848,1743055832924,-2064.742,0.00014949,2]
[356730849,1743055832933,-1286.685,0.00014949,2]
[356730850,1743055832943,-152.871,0.00014949,2]
[356730851,1743055832953,-572.0,0.00014949,2]
[356730852,1743055832963,-1422.0,0.00014949,2]
[356730853,1743055832972,-792.0,0.00014949,2]
[356730854,1743055832982,-1277.125,0.00014949,2]
[356730855,1743055832991,-4088.0,0.00014949,2]
[356730856,1743055833001,-544.781,0.00014949,2]
[356730857,1743055833011,-911.818,0.00014949,2]
[356730858,1743055833021,-1467.809,0.00014949,2]
[356730859,1743055833030,-165011.00150412,0.0001498,2]
[356730860,1743055833039,-151.0,0.0001498,2]
[356730861,1743055833050,-151.0,0.0001498,2]
[356730862,1743055833060,-151.38383,0.0001498,2]
[356730863,1743055833070,-151.0,0.0001498,2]
[356730864,1743055833080,-151.0,0.0001498,2]
[356730865,1743055833090,-151.0,0.0001498,2]
[356730866,1743055833099,-1357.811498,0.0001498,2]
[356730867,1743055833109,-1357.811498,0.0001498,2]
[356730868,1743055833118,-154.520477,0.0001498,2]
[356730869,1743055833128,-151.0,0.0001498,2]
[356730870,1743055833137,-151.0,0.0001498,2]
[356730871,1743055833146,-354.711637,0.0001498,2]
[356730872,1743055833156,-354.711637,0.0001498,2]
[356730873,1743055833171,-151.0,0.0001498,2]
[356730874,1743055833180,-151.0,0.0001498,2]
[356730875,1743055833189,-162.36135,0.0001498,2]
[356730876,1743055833199,-151.0,0.0001498,2]
[356730877,1743055833209,-151.0,0.0001498,2]
[356730878,1743055833218,-414.054045,0.0001498,2]
[356730879,1743055833228,-151.0,0.0001498,2]
[356730880,1743055833237,-414.054045,0.0001498,2]
[356730881,1743055833247,-151.0,0.0001498,2]
[356730882,1743055833256,-151.0,0.0001498,2]
[356730883,1743055833266,-197851.87647364,0.00015,2]
[356730884,1743055833390,-553185.04596505,0.00015,2]
[356730885,1743055833401,-686.38615094,0.00015,2]
[356730886,1743055833413,-437.15268694,0.00015,2]
[356730887,1743055833427,-1361.37018611,0.00015,2]
[356730890,1743055837798,-151.0,0.0001498,2]
[356730891,1743055837808,-127.57371669,0.00015,2]
[356730892,1743055837857,-88143.68939692,0.00015,2]
[356730893,1743055837868,-66521.9944052,0.00015,2]
[356731033,1743055840114,-156151.6653413,0.00015,2]
[356731035,1743055840126,-2342.47585922,0.00015,2]
[356731037,1743055840138,-354.63427541,0.00015,2]
[356731038,1743055840150,-5300.15910941,0.00015,2]
[356731046,1743055840240,-3178.4702031,0.00015,2]
[356731207,1743055842929,-2599.98743998,0.00015,2]
[356731208,1743055842940,-8402.4,0.00015,2]
[356731209,1743055842952,-3549.96844399,0.00015,2]
[356731210,1743055842964,-4656.8773694,0.00015,2]
[356731211,1743055844032,-101424.34993951,0.00015,2]
[356731213,1743055845714,-5722.32155505,0.00015,2]
[356731214,1743055845774,-152.440256,0.0001498,2]
[356731215,1743055845783,-2016.72467196,0.00015,2]
[356731216,1743055845830,-4672.00804507,0.00015,2]
[356731217,1743055845841,-379.89623438,0.00015,2]
[356731218,1743055845852,-42017.71305148,0.00015,2]
[356731219,1743055845941,-543.2619752,0.00015,2]
[356731220,1743055845952,-470.22347517,0.00015,2]
[356731221,1743055846053,-335.30570427,0.00015,2]
[356731222,1743055846065,-2517.20327841,0.00015,2]
[356731223,1743055846077,-769.686283,0.00015,2]
[356731224,1743055846111,-600.08536326,0.00015,2]
[356731225,1743056044618,-150.0,0.00014231,2]
[356731226,1743056102144,-262.0305563,0.00014231,2]
[356731227,1743056163198,-183.713212,0.00014231,2]
[356731228,1743056560785,759.0,0.00025,60]
[356731229,1743056614691,-152.35,0.00013699,2]
[356731230,1743056615799,-152.35,0.00013699,2]
[356731231,1743056618435,-152.35,0.00013699,2]
[356731232,1743056619541,-152.35,0.00013699,2]
[356731233,1743056621293,-152.35,0.00013699,2]
[356731234,1743056623361,-152.35,0.00013699,2]
[356731235,1743056642502,-300.0,0.00013698,2]
[356731236,1743056728129,-968.51658176,0.00011,2]
[356731237,1743056733744,-902.45251824,0.00011,2]
[356731238,1743056766177,1392.23345846,8e-05,2]
[356731239,1743056766221,1401.0891501,8e-05,2]
[356731240,1743056766262,797.61611267,8e-05,2]
[356731241,1743056783645,-350.0,0.00011,2]
[356731257,1743056877292,2000.0,0.00025,60]
[356731258,1743056895462,-350.0,0.00011,2]
[356731261,1743056986413,-1989.26868675,0.00011,2]
[356731264,1743057005136,350.0,0.000121,3]
[356731265,1743057005200,350.0,0.00011587,3]
[356731266,1743057005268,350.0,0.0001287,3]
[356731276,1743057032025,-32.56920356,0.00011,2]
[356731277,1743057032035,-150.0,0.00011587,2]
[356731278,1743057032046,-250.0,0.00012079,2]
[356731279,1743057032056,-150.0,0.000121,2]
[356731280,1743057032066,-998.54,0.00012175,2]
[356731281,1743057032075,-150.0,0.0001287,2]
[356731282,1743057032085,-902.45251824,0.00013599,2]
[356731283,1743057032095,-152.35,0.00013699,2]
[356731284,1743057032106,-152.35,0.00013699,2]
[356731285,1743057032115,-152.35,0.00013699,2]
[356731286,1743057032125,-152.35,0.00013699,2]
[356731287,1743057032135,-152.35,0.00013699,2]
[356731288,1743057032144,-152.35,0.00013699,2]
[356731289,1743057032154,-152.35,0.00013699,2]
[356731290,1743057032164,-152.35,0.00013699,2]
[356731291,1743057032333,-152.35,0.00013699,2]
[356731292,1743057032345,-152.38664432,0.00013699,2]
[356731293,1743057032355,-173.66,0.00013877,2]
[356731294,1743057032365,-150.0,0.00013904,2]
[356731295,1743057032375,-3746.8734976,0.00014136,2]
[356731296,1743057032387,-757.19135972,0.00014136,2]
[356731297,1743057032399,-10314.42704268,0.00014136,2]
[356731298,1743057032409,-150.0,0.00014283,2]
[356731299,1743057032419,-23900.0,0.00014284,2]
[356731300,1743057032428,-500.0,0.00014384,2]
[356731301,1743057032438,-998.54,0.00014439,2]
[356731303,1743057032448,-250.0,0.00014537,2]
[356731305,1743057032457,-1000.0,0.00014543,2]
[356731306,1743057032466,-456.49646655,0.000146,2]
[356731307,1743057032478,-771.29029179,0.000146,2]
[356731308,1743057032497,-3079.51141144,0.000146,2]
[356731309,1743057032508,-2501.25394069,0.000146,2]
[356731318,1743057037957,-1233.42756601,0.000146,2]
[356731319,1743057038039,-9233.78530608,0.000146,2]
[356731320,1743057038120,-10078.75748,0.000146,2]
[356731321,1743057038201,-392.55054101,0.000146,2]
[356731322,1743057038213,-8233.12199643,0.000146,2]
[356731324,1743057038222,-1000.0,0.000146,2]
[356731326,1743057038231,-150.0,0.00014705,7]
[356731328,1743057038241,-1751.06,0.00014796,2]
[356731330,1743057038250,-1074.45696013,0.00014796,2]
[356731332,1743057038262,-539.33851882,0.00014796,2]
[356731335,1743057040240,-1543.9525268,0.00014796,2]
[356731336,1743057040328,-5486.26199425,0.00014796,2]
[356731337,1743057040338,-500.0,0.00014849,2]
[356731338,1743057040348,-188.7,0.00014858,2]
[356731339,1743057040358,-500.0,0.000149,2]
[356731340,1743057040367,-178.34399955,0.000149,2]
[356731341,1743057040377,-153.87073416,0.000149,2]
[356731342,1743057040387,-1721.99058898,0.000149,2]
[356731343,1743057040396,-500.0,0.00014973,2]
[356731344,1743057040406,-15627.99041912,0.00015,2]
[356731345,1743057040420,-175142.84262482,0.00015,2]
[356731346,1743057040571,-0.0582573,0.00015,2]
[356731347,1743057040582,-4727.11544397,0.00015,2]
[356731348,1743057040603,-1759.8369796,0.00015,2]
[356731418,1743057043085,-1034.7613594,0.00015,2]
[356731419,1743057043100,-6466.8835218,0.00015,2]
[356731420,1743057043316,-3867.34,0.00015,2]
[356731421,1743057043328,-3275.53723411,0.00015,2]
[356731422,1743057043340,-1525.57746521,0.00015,2]
[356731424,1743057045923,-500.0,0.00015,2]
[356731426,1743057046357,-35195.45801694,0.00015,2]
[356731427,1743057488489,1403.7264479,7.945e-05,2]
[356731428,1743057488534,1416.14331296,7.945e-05,2]
[356731429,1743057488576,1514.84700889,7.945e-05,2]
[356731430,1743057488618,1460.60691484,7.945e-05,2]
[356731431,1743057488660,1505.69456683,7.945e-05,2]
[356731432,1743057488998,1423.46165292,7.945e-05,2]
[356731433,1743057489046,735.38715666,7.945e-05,2]
[356731450,1743058232210,-922.5,0.00013074,2]